bitfinex-derivatives/quotes_BTCF0:USTF0_20240825
["timestamp","ask_amount","ask_price","bid_price","bid_amount"]
[1724620095731,0.005,64301.0,64300.0,0.66199829]
[1724620097835,0.05156043,64301.0,64300.0,0.66199829]
[1724620098140,0.005,64301.0,64300.0,0.66199829]
[1724620098439,0.005,64301.0,64300.0,0.70889829]
[1724620099230,0.005,64301.0,64300.0,0.34809829]
[1724620099633,0.005,64301.0,64300.0,1.06969829]
[1724620099829,0.005,64301.0,64300.0,0.34809829]
[1724620100033,0.005,64301.0,64300.0,1.06969829]
[1724620102831,0.06021439,64301.0,64300.0,1.06969829]
[1724620103232,0.06021439,64301.0,64300.0,0.34809829]
[1724620103428,0.06021439,64301.0,64300.0,1.06969829]
[1724620105944,0.06021439,64301.0,64300.0,0.34809829]
[1724620106238,0.06021439,64301.0,64300.0,1.53625829]
[1724620106239,0.09823512,64301.0,64300.0,1.53625829]
[1724620106436,0.1234312,64301.0,64300.0,1.53625829]
[1724620106638,0.09322337,64305.0,64302.0,0.077718]
[1724620106839,0.07767675,64305.0,64304.0,0.09]
[1724620107034,0.07767675,64306.0,64304.0,0.20523629]
[1724620107239,0.07767675,64306.0,64305.0,0.09]
[1724620107538,0.12443691,64322.0,64305.0,0.09]
[1724620107539,0.07767675,64309.0,64308.0,0.077712]
[1724620107743,0.07767675,64310.0,64309.0,0.09]
[1724620107931,0.07767675,64310.0,64309.0,0.2]
[1724620108131,0.10874746,64325.0,64309.0,0.2]
[1724620108132,0.07767675,64311.0,64310.0,0.07771]
[1724620108443,0.07767675,64312.0,64310.0,0.63851]
[1724620108636,0.19874746,64329.0,64310.0,0.63851]
[1724620108637,0.07767675,64313.0,64312.0,0.077707]
[1724620108834,0.07767675,64313.0,64312.0,0.354267]
[1724620109039,0.07767675,64313.0,64312.0,0.47134329]
[1724620109339,0.07767675,64314.0,64312.0,0.47134329]
[1724620109643,0.07767675,64315.0,64314.0,0.077705]
[1724620109844,0.07767675,64315.0,64314.0,0.237705]
[1724620110043,0.07767675,64315.0,64314.0,0.24294129]
[1724620110347,0.04652208,64319.0,64316.0,0.077701]
[1724620110545,0.04652208,64320.0,64318.0,0.4508]
[1724620110742,0.04652208,64320.0,64319.0,0.09]
[1724620111350,0.04652208,64320.0,64319.0,0.09563629]
[1724620111641,0.04652208,64321.0,64319.0,0.09563629]
[1724620111848,0.04652208,64321.0,64320.0,0.09]
[1724620112138,0.04652208,64321.0,64320.0,0.09523629]
[1724620112338,0.04652208,64321.0,64320.0,0.09563629]
[1724620112932,0.06202944,64325.0,64320.0,0.09563629]
[1724620112933,0.04652208,64322.0,64320.0,0.09563629]
[1724620113335,0.04652208,64322.0,64321.0,0.00523629]
[1724620113845,0.04652208,64322.0,64321.0,0.00563629]
[1724620114051,0.04652208,64323.0,64321.0,0.00563629]
[1724620114235,0.04652208,64323.0,64322.0,0.00523629]
[1724620114553,0.04652208,64324.0,64322.0,0.00523629]
[1724620115341,0.04652208,64324.0,64323.0,0.00563629]
[1724620115548,0.04652208,64325.0,64323.0,0.09563629]
[1724620115751,0.06202944,64327.0,64324.0,0.3608]
[1724620116238,0.06202944,64326.0,64325.0,0.01243]
[1724620116439,0.06202944,64326.0,64325.0,0.01766629]
[1724620117435,0.14520187,64326.0,64325.0,0.01766629]
[1724620117737,0.25361246,64326.0,64325.0,0.01766629]
[1724620118643,0.25361246,64326.0,64325.0,0.03009629]
[1724620119438,0.25361246,64326.0,64325.0,0.03109629]
[1724620120140,0.25361246,64326.0,64325.0,0.03209629]
[1724620121134,0.25361246,64326.0,64325.0,0.03710629]
[1724620121541,0.14520187,64326.0,64325.0,0.03710629]
[1724620122951,1.1272986,64326.0,64325.0,0.03710629]
[1724620123246,0.7272986,64326.0,64325.0,0.03710629]
[1724620123440,0.85173551,64326.0,64325.0,0.04843629]
[1724620123636,0.7272986,64326.0,64325.0,0.04843629]
[1724620124344,0.79769232,64326.0,64325.0,0.04843629]
[1724620125546,0.71151898,64326.0,64325.0,0.04843629]
[1724620125749,0.71151898,64326.0,64325.0,0.12495629]
[1724620127255,1.11151898,64326.0,64325.0,0.12495629]
[1724620127551,0.71151898,64326.0,64325.0,0.12495629]
[1724620127951,0.15515898,64326.0,64325.0,0.12495629]
[1724620128850,0.07769,64326.0,64325.0,0.12495629]
[1724620132553,0.10288067,64326.0,64325.0,0.12495629]
[1724620133552,0.19584344,64326.0,64325.0,0.12495629]
[1724620134053,0.10288067,64326.0,64325.0,0.12495629]
[1724620134650,0.19584344,64326.0,64325.0,0.12495629]
[1724620135654,0.10288067,64326.0,64325.0,0.12495629]
[1724620137565,8.8e-07,64330.0,64325.0,0.12495629]
[1724620137863,0.50085155,64343.0,64336.0,0.3608]
[1724620137864,4.7e-07,64339.0,64336.0,0.3608]
[1724620138054,0.06213398,64339.0,64338.0,0.528476]
[1724620138257,0.06213398,64339.0,64338.0,0.5508]
[1724620138258,0.0465926,64339.0,64338.0,0.5508]
[1724620138451,0.10876806,64370.0,64339.0,0.46628]
[1724620138656,0.02763444,64370.0,64369.0,0.3608]
[1724620138855,0.09,64370.0,64369.0,0.3608]
[1724620139165,0.09,64370.0,64369.0,0.3612]
[1724620139458,0.09,64370.0,64369.0,0.39127629]
[1724620139659,0.077636,64371.0,64369.0,0.39127629]
[1724620139851,0.09,64370.0,64369.0,0.39127629]
[1724620140058,0.09,64370.0,64369.0,0.39227629]
[1724620140263,0.15858,64377.0,64369.0,0.39227629]
[1724620140264,0.11208,64377.0,64369.0,0.94831629]
[1724620140476,0.12430636,64389.0,64369.0,0.94831629]
[1724620140477,0.1383,64389.0,64376.0,0.3608]
[1724620140667,0.12430636,64379.0,64377.0,0.077628]
[1724620140869,0.12430636,64379.0,64378.0,0.3608]
[1724620141051,0.03801374,64379.0,64378.0,0.3608]
[1724620141364,0.03801374,64379.0,64378.0,0.4508]
[1724620141562,0.12430636,64381.0,64378.0,0.45603629]
[1724620141765,0.10804589,64381.0,64378.0,0.45603629]
[1724620141957,0.10804589,64381.0,64378.0,0.36603629]
[1724620142152,0.11563674,64383.0,64378.0,0.36603629]
[1724620142153,0.18566889,64383.0,64378.0,0.36603629]
[1724620142451,0.077623,64383.0,64380.0,0.0004]
[1724620142667,0.077623,64383.0,64381.0,0.00523629]
[1724620142854,0.077623,64383.0,64382.0,0.0004]
[1724620143763,0.077623,64383.0,64382.0,0.00563629]
[1724620144660,0.077623,64383.0,64382.0,0.00663629]
[1724620145166,0.077623,64383.0,64382.0,0.01793629]
[1724620145352,0.077623,64383.0,64382.0,0.01893629]
[1724620145773,0.0483,64389.0,64382.0,0.01893629]
[1724620146067,0.077614,64390.0,64382.0,0.01893629]
[1724620146068,0.077614,64390.0,64388.0,0.3608]
[1724620146761,0.077614,64390.0,64389.0,0.00563629]
[1724620148764,0.077614,64390.0,64389.0,0.00663629]
[1724620149461,0.077614,64390.0,64389.0,0.00563629]
[1724620149663,0.077614,64390.0,64389.0,0.00663629]
[1724620149869,0.077614,64390.0,64389.0,0.00763629]
[1724620150361,0.077614,64390.0,64389.0,0.00663629]
[1724620150560,0.077614,64390.0,64389.0,0.00763629]
[1724620151165,0.077614,64390.0,64389.0,0.05763629]
[1724620151361,0.077614,64390.0,64389.0,0.00763629]
[1724620152156,0.077614,64390.0,64388.0,0.3608]
[1724620152363,0.077629,64377.0,64376.0,0.0002331]
[1724620152668,0.438429,64377.0,64376.0,0.0002331]
[1724620152857,0.904429,64377.0,64376.0,0.0052331]
[1724620153456,0.904429,64377.0,64376.0,0.0816231]
[1724620154571,0.077629,64377.0,64376.0,0.0816231]
[1724620155263,0.077622,64383.0,64376.0,0.1692521]
[1724620155464,0.3608,64399.0,64384.0,0.077619]
[1724620155465,0.077614,64389.0,64384.0,0.077619]
[1724620155667,0.077614,64389.0,64388.0,0.3608]
[1724620156264,0.077614,64389.0,64388.0,0.3612]
[1724620156662,0.077607,64395.0,64388.0,0.438815]
[1724620156874,0.077603,64399.0,64394.0,0.077608]
[1724620157077,0.077603,64399.0,64398.0,0.3608]
[1724620157369,0.21,64412.0,64398.0,0.3608]
[1724620157370,0.438388,64412.0,64398.0,0.3608]
[1724620157670,0.077588,64412.0,64406.0,0.3608]
[1724620157871,0.0966,64414.0,64406.0,0.3608]
[1724620158178,0.077592,64408.0,64407.0,0.01242]
[1724620159475,0.078592,64408.0,64407.0,0.01342]
[1724620159865,0.077592,64408.0,64407.0,0.01242]
[1724620160071,0.077592,64408.0,64407.0,0.01442]
[1724620160072,0.079592,64408.0,64407.0,0.01442]
[1724620160374,0.945392,64408.0,64407.0,0.01442]
[1724620160864,1.383784,64408.0,64407.0,0.001]
[1724620161069,1.383784,64408.0,64389.0,0.4101]
[1724620161070,0.077613,64390.0,64389.0,0.4101]
[1724620161980,0.077613,64390.0,64389.0,0.3608]
[1724620162176,0.077613,64390.0,64389.0,0.37322]
[1724620162586,0.077613,64390.0,64389.0,0.38535]
[1724620163080,0.077613,64390.0,64389.0,0.39335]
[1724620164173,0.077613,64390.0,64389.0,0.40235]
[1724620165075,0.077613,64390.0,64389.0,0.39435]
[1724620165277,0.00023136,64396.0,64389.0,0.39835]
[1724620165487,0.00023136,64396.0,64395.0,0.3608]
[1724620166169,0.00023136,64396.0,64395.0,0.3612]
[1724620166778,0.00123136,64396.0,64395.0,0.3612]
[1724620167479,0.00023136,64396.0,64395.0,0.3672]
[1724620168179,0.00223136,64396.0,64395.0,0.3672]
[1724620168580,0.86611136,64396.0,64395.0,0.3672]
[1724620168877,0.86611136,64396.0,64395.0,0.0094]
[1724620169387,0.077607,64395.0,64389.0,0.38535]
[1724620169572,0.077613,64390.0,64389.0,0.38535]
[1724620170875,0.079613,64390.0,64389.0,0.38535]
[1724620172072,0.081613,64390.0,64389.0,0.38635]
[1724620172678,0.082613,64390.0,64389.0,0.38535]
[1724620173378,0.077613,64390.0,64389.0,0.38535]
[1724620173581,0.086613,64390.0,64389.0,0.38635]
[1724620174276,0.088613,64390.0,64389.0,0.38635]
[1724620175079,0.088613,64390.0,64389.0,0.38735]
[1724620175380,0.088613,64390.0,64389.0,0.38635]
[1724620175679,0.088613,64390.0,64389.0,0.38735]
[1724620175868,0.079613,64390.0,64389.0,0.38635]
[1724620176074,0.085613,64390.0,64389.0,0.38635]
[1724620176873,0.081613,64390.0,64389.0,0.38535]
[1724620177676,0.079613,64390.0,64389.0,0.39035]
[1724620177875,0.081613,64390.0,64389.0,0.39035]
[1724620178280,0.081613,64390.0,64389.0,0.46666]
[1724620179270,0.083613,64390.0,64389.0,0.46666]
[1724620179671,0.161226,64390.0,64389.0,0.10586]
[1724620180075,0.159226,64390.0,64389.0,0.10586]
[1724620180276,0.25117763,64390.0,64389.0,0.10586]
[1724620180577,0.188212,64390.0,64389.0,0.10586]
[1724620180778,0.654132,64390.0,64389.0,0.10586]
[1724620181181,0.655132,64390.0,64389.0,0.10686]
[1724620181577,0.655132,64390.0,64373.0,0.438433]
[1724620181578,0.499906,64390.0,64375.0,0.02179015]
[1724620181892,0.499906,64390.0,64373.0,0.3608]
[1724620181893,0.077632,64374.0,64373.0,0.3608]
[1724620182681,0.078032,64374.0,64373.0,0.3608]
[1724620183082,0.078032,64374.0,64373.0,0.3718]
[1724620183083,0.079032,64374.0,64373.0,0.3718]
[1724620183280,0.079032,64374.0,64373.0,0.38422]
[1724620184483,0.079032,64374.0,64373.0,0.39422]
[1724620184687,0.04019131,64374.0,64373.0,0.39422]
[1724620185492,0.04119131,64374.0,64373.0,0.38422]
[1724620185682,0.04019131,64374.0,64373.0,0.37322]
[1724620186181,0.0014,64374.0,64373.0,0.37322]
[1724620186383,0.0014,64374.0,64373.0,0.450853]
[1724620187480,0.0004,64374.0,64373.0,0.450853]
[1724620187685,0.0004,64374.0,64373.0,0.453853]
[1724620188786,0.0004,64374.0,64373.0,0.37622]
[1724620189280,0.0004,64374.0,64373.0,0.37922]
[1724620192991,0.0004,64374.0,64373.0,0.01842]
[1724620193183,0.0004,64374.0,64373.0,0.37922]
[1724620193591,0.0004,64374.0,64373.0,0.01842]
[1724620193789,0.0004,64374.0,64373.0,0.37922]
[1724620196189,0.0004,64374.0,64373.0,0.456853]
[1724620197289,0.09326701,64374.0,64373.0,0.456853]
[1724620198399,0.0004,64374.0,64373.0,0.456853]
[1724620198583,0.0004,64374.0,64373.0,0.453853]
[1724620198789,0.0004,64374.0,64373.0,0.456853]
[1724620199697,0.0004,64374.0,64373.0,0.51841991]
[1724620200387,0.0004,64374.0,64373.0,0.456853]
[1724620200800,0.0004,64374.0,64373.0,0.51848069]
[1724620201008,0.078032,64374.0,64373.0,0.37922]
[1724620201203,0.078032,64374.0,64373.0,0.42544894]
[1724620201406,0.078032,64374.0,64373.0,0.42544865]
[1724620201706,0.078032,64374.0,64373.0,0.37922]
[1724620202209,0.078032,64374.0,64373.0,0.37622]
[1724620203297,0.079032,64374.0,64373.0,0.37322]
[1724620206009,0.622704,64374.0,64373.0,0.37322]
[1724620206207,1.022704,64374.0,64373.0,0.37322]
[1724620206812,1.383504,64374.0,64373.0,0.01242]
[1724620210510,1.47653475,64374.0,64373.0,0.01242]
[1724620211008,1.461136,64374.0,64373.0,1e-06]
[1724620212415,1.55411621,64374.0,64373.0,1e-06]
[1724620212808,1.461136,64374.0,64373.0,1e-06]
[1724620214410,1.55407327,64374.0,64373.0,1e-06]
[1724620214711,1.49916306,64374.0,64367.0,0.0002329]
[1724620214916,0.648439,64368.0,64360.0,0.00019856]
[1724620215116,0.66374058,64361.0,64360.0,0.00019856]
[1724620215414,0.5708,64361.0,64360.0,0.00019856]
[1724620215820,0.648848,64361.0,64360.0,0.00019856]
[1724620216318,0.726496,64361.0,64360.0,0.00019856]
[1724620216517,0.726496,64361.0,64360.0,0.02662856]
[1724620217316,0.81935831,64361.0,64360.0,0.02662856]
[1724620217820,0.82035831,64361.0,64360.0,0.04062856]
[1724620218906,0.727496,64361.0,64360.0,0.04062856]
[1724620222613,0.727496,64361.0,64360.0,0.02662856]
[1724620222815,0.731496,64361.0,64360.0,0.02662856]
[1724620223207,0.727496,64361.0,64360.0,0.02662856]
[1724620223416,0.731496,64361.0,64360.0,0.02762856]
[1724620223715,0.652848,64361.0,64360.0,0.01362856]
[1724620223926,0.655848,64361.0,64360.0,0.01362856]
[1724620224512,0.652848,64361.0,64360.0,0.01362856]
[1724620224714,0.298048,64361.0,64360.0,0.01362856]
[1724620225621,0.375696,64361.0,64360.0,0.01362856]
[1724620227126,1.319464,64361.0,64360.0,0.01362856]
[1724620227418,1.319464,64361.0,64354.0,0.0002329]
[1724620227419,0.15531,64355.0,64354.0,0.0002329]
[1724620227623,0.72611,64355.0,64354.0,0.0002329]
[1724620228214,0.72670117,64355.0,64354.0,0.0002329]
[1724620229125,0.72770117,64355.0,64354.0,0.0053829]
[1724620230119,0.72670117,64355.0,64354.0,0.0053829]
[1724620230323,0.73570117,64355.0,64354.0,0.0053829]
[1724620232127,0.37490117,64355.0,64354.0,0.0053829]
[1724620232327,0.75763383,64355.0,64354.0,0.0053829]
[1724620243228,0.75363383,64355.0,64354.0,0.0063829]
[1724620243534,0.76063383,64355.0,64354.0,0.0063829]
[1724620243831,0.76163383,64355.0,64354.0,0.0073829]
[1724620249530,0.68397883,64355.0,64354.0,0.0073829]
[1724620253843,0.32317883,64355.0,64354.0,0.0073829]
[1724620254141,0.68397883,64355.0,64354.0,0.0073829]
[1724620258038,0.56397883,64355.0,64354.0,0.0073829]
[1724620262838,0.20317883,64355.0,64354.0,0.0073829]
[1724620263041,0.56397883,64355.0,64354.0,0.0073829]
[1724620265241,0.20317883,64355.0,64354.0,0.0073829]
[1724620265438,0.56397883,64355.0,64354.0,0.0073829]
[1724620267837,0.60201431,64355.0,64354.0,0.0073829]
[1724620268638,0.67277712,64355.0,64354.0,0.0073829]
[1724620268941,0.75043212,64355.0,64354.0,0.0073829]
[1724620269243,0.60201449,64355.0,64354.0,0.0073829]
[1724620269934,0.24121449,64355.0,64354.0,0.0073829]
[1724620270131,0.60201449,64355.0,64354.0,0.0073829]
[1724620270739,0.6020145,64355.0,64354.0,0.0073829]
[1724620271542,0.2412145,64355.0,64354.0,0.0073829]
[1724620272135,0.6020145,64355.0,64354.0,0.0073829]
[1724620272638,0.20317883,64355.0,64354.0,0.0073829]
[1724620272939,0.60201446,64355.0,64354.0,0.0073829]
[1724620273739,0.24121446,64355.0,64354.0,0.0073829]
[1724620273943,0.60201446,64355.0,64354.0,0.0073829]
[1724620274649,0.24121446,64355.0,64354.0,0.0073829]
[1724620274839,0.56397883,64355.0,64354.0,0.0073829]
[1724620275540,0.64163383,64355.0,64354.0,0.0073829]
[1724620275745,0.61297883,64355.0,64354.0,0.0073829]
[1724620276443,0.69063383,64355.0,64354.0,0.0073829]
[1724620276649,0.61297883,64355.0,64354.0,0.0073829]
[1724620277645,0.69063383,64355.0,64354.0,0.0073829]
[1724620277947,0.61297883,64355.0,64354.0,0.0073829]
[1724620278144,0.25217883,64355.0,64354.0,0.0073829]
[1724620278343,0.61297883,64355.0,64354.0,0.0073829]
[1724620278647,0.69063383,64355.0,64354.0,0.0073829]
[1724620279747,0.61297883,64355.0,64354.0,0.0073829]
[1724620280242,0.69063383,64355.0,64354.0,0.0073829]
[1724620281444,0.077664,64348.0,64347.0,0.06162972]
[1724620281648,0.077664,64348.0,64345.0,0.4135]
[1724620281649,0.077666,64346.0,64345.0,0.4135]
[1724620282345,0.078066,64346.0,64345.0,0.4135]
[1724620283247,0.078066,64346.0,64345.0,0.0527]
[1724620283442,0.078066,64346.0,64345.0,0.0557]
[1724620284245,0.078066,64346.0,64345.0,0.0577]
[1724620284445,0.10074186,64346.0,64345.0,0.0577]
[1724620285147,0.17840786,64346.0,64345.0,0.0577]
[1724620285450,0.17840786,64346.0,64339.0,0.04933308]
[1724620285451,0.155346,64340.0,64339.0,0.00023308]
[1724620285644,0.245346,64340.0,64339.0,0.00023308]
[1724620286245,0.168073,64340.0,64339.0,0.00023308]
[1724620286442,0.168073,64340.0,64339.0,0.00923308]
[1724620286651,0.168073,64340.0,64339.0,0.01723308]
[1724620286652,0.170073,64340.0,64339.0,0.01723308]
[1724620289251,0.0024,64340.0,64339.0,0.01723308]
[1724620289458,0.170073,64340.0,64339.0,0.01723308]
[1724620294054,0.0024,64340.0,64339.0,0.18490708]
[1724620294854,0.0024,64340.0,64339.0,0.19490708]
[1724620295363,0.0024,64340.0,64339.0,1.06118708]
[1724620295656,0.0024,64340.0,64339.0,0.66118708]
[1724620299447,0.0024,64340.0,64339.0,1.02198708]
[1724620300150,0.0024,64340.0,64339.0,1.01198708]
[1724620300349,0.0024,64340.0,64339.0,0.92198708]
[1724620301553,0.0024,64340.0,64339.0,0.54570708]
[1724620302858,0.0024,64340.0,64339.0,0.60754683]
[1724620303250,0.0024,64340.0,64339.0,0.54570708]
[1724620304662,0.0024,64340.0,64339.0,0.60745261]
[1724620304868,0.13984465,64353.0,64351.0,0.07766]
[1724620305058,0.16235471,64352.0,64351.0,0.43846]
[1724620305260,0.0382666,64352.0,64351.0,0.43846]
[1724620305565,0.00023308,64352.0,64351.0,0.43886]
[1724620306063,0.00030993,64352.0,64351.0,0.43886]
[1724620306270,0.00430993,64352.0,64351.0,0.43886]
[1724620306562,0.00930993,64352.0,64351.0,0.43886]
[1724620308165,0.00930993,64352.0,64351.0,0.79966]
[1724620311259,0.00930993,64352.0,64351.0,0.07806]
[1724620311460,0.10224668,64352.0,64351.0,0.79966]
[1724620312061,0.00930993,64352.0,64351.0,0.79966]
[1724620312964,0.00930993,64352.0,64351.0,0.82195606]
[1724620314667,0.00930993,64352.0,64351.0,0.10035606]
[1724620314863,0.00930993,64352.0,64351.0,0.82195606]
[1724620315471,0.00930993,64352.0,64351.0,1.28815606]
[1724620315872,0.00930993,64352.0,64351.0,1.29815606]
[1724620318073,0.00930993,64352.0,64351.0,1.28815606]
[1724620318578,0.00930993,64352.0,64351.0,0.82195606]
[1724620319873,0.00930993,64352.0,64351.0,0.83195606]
[1724620321978,0.10852769,64356.0,64355.0,0.077655]
[1724620322276,0.10852769,64358.0,64357.0,0.077653]
[1724620322472,0.18617369,64363.0,64360.0,0.077649]
[1724620322667,0.077647,64362.0,64361.0,0.09]
[1724620324374,0.087647,64362.0,64361.0,0.091]
[1724620325173,0.087647,64362.0,64361.0,0.001]
[1724620325573,0.087647,64362.0,64361.0,0.168648]
[1724620325873,0.090647,64362.0,64361.0,0.169648]
[1724620326072,0.090647,64362.0,64361.0,0.530448]
[1724620326469,0.21473511,64362.0,64361.0,0.530448]
[1724620326671,0.25276167,64362.0,64361.0,0.530448]
[1724620326970,0.25276167,64362.0,64361.0,0.440448]
[1724620327768,0.25276167,64362.0,64361.0,0.530448]
[1724620327975,0.090647,64362.0,64361.0,0.530448]
[1724620332382,0.013,64362.0,64361.0,0.530448]
[1724620334179,0.103,64362.0,64361.0,0.440448]
[1724620334386,0.090647,64362.0,64361.0,0.3628]
[1724620334570,0.180647,64362.0,64361.0,0.3628]
[1724620338878,0.180647,64362.0,64355.0,0.00023308]
[1724620338879,0.077654,64356.0,64355.0,0.00023308]
[1724620339786,0.078054,64356.0,64355.0,0.00023308]
[1724620340379,0.093054,64356.0,64355.0,0.00223308]
[1724620343085,0.13108513,64356.0,64355.0,0.00223308]
[1724620344588,0.23289865,64356.0,64355.0,0.00223308]
[1724620344886,0.13108513,64356.0,64355.0,0.00223308]
[1724620347990,0.093054,64356.0,64355.0,0.00223308]
[1724620348185,0.20166521,64356.0,64355.0,0.00223308]
[1724620350198,0.093054,64356.0,64355.0,0.00223308]
[1724620352090,0.636868,64356.0,64355.0,0.00223308]
[1724620354593,0.170708,64356.0,64355.0,0.00223308]
[1724620356385,0.636868,64356.0,64355.0,0.00223308]
[1724620356588,0.170708,64356.0,64355.0,0.00223308]
[1724620356788,0.19293106,64356.0,64355.0,0.00223308]
[1724620358200,0.23096539,64356.0,64355.0,0.00223308]
[1724620361199,0.155318,64352.0,64351.0,0.0004]
[1724620361399,0.64415233,64352.0,64351.0,0.0004]
[1724620361701,0.64415233,64352.0,64338.0,0.0529]
[1724620361702,0.07766,64351.0,64338.0,0.0529]
[1724620362003,0.09,64339.0,64338.0,0.074678]
[1724620362190,0.077676,64338.0,64337.0,0.36172]
[1724620362390,0.077676,64338.0,64337.0,0.3608]
[1724620362691,0.167676,64338.0,64337.0,0.3608]
[1724620362898,0.168076,64338.0,64337.0,0.3608]
[1724620364304,0.169076,64338.0,64337.0,0.3718]
[1724620366089,0.170076,64338.0,64337.0,0.3828]
[1724620370398,0.274076,64338.0,64337.0,0.3828]
[1724620372101,0.351752,64338.0,64337.0,0.3828]
[1724620373096,0.351752,64338.0,64337.0,0.022]
[1724620373704,0.080076,64338.0,64337.0,0.022]
[1724620373904,0.170076,64338.0,64337.0,0.022]
[1724620375904,0.0024,64338.0,64337.0,0.099677]
[1724620376101,0.0024,64338.0,64337.0,0.243277]
[1724620377307,0.0024,64338.0,64337.0,0.253277]
[1724620378202,0.0024,64338.0,64337.0,0.614077]
[1724620378901,0.0024,64338.0,64337.0,0.253277]
[1724620379101,0.0024,64338.0,64337.0,0.614077]
[1724620381015,0.0024,64338.0,64337.0,0.253277]
[1724620381513,0.0024,64338.0,64337.0,0.614077]
[1724620382812,0.0024,64338.0,64337.0,0.253277]
[1724620383012,0.0024,64338.0,64337.0,0.614077]
[1724620383408,0.0024,64338.0,64337.0,0.253277]
[1724620383713,0.0024,64338.0,64337.0,0.614077]
[1724620383909,0.0024,64338.0,64337.0,0.253277]
[1724620384213,0.0024,64338.0,64337.0,0.614077]
[1724620385711,0.0024,64338.0,64337.0,1.080357]
[1724620385907,0.00023308,64345.0,64344.0,0.077668]
[1724620386106,0.00023308,64345.0,64344.0,0.438468]
[1724620386610,0.00023308,64345.0,64344.0,0.438868]
[1724620387203,0.00023308,64345.0,64344.0,0.445868]
[1724620387810,0.09023308,64345.0,64344.0,0.445868]
[1724620388208,0.00023308,64345.0,64344.0,0.445868]
[1724620388413,0.00023308,64345.0,64344.0,0.455868]
[1724620393213,0.00023308,64345.0,64344.0,0.816668]
[1724620394011,0.00023308,64345.0,64344.0,0.83836845]
[1724620394609,0.184953,64357.0,64344.0,1.22694045]
[1724620394813,0.274953,64357.0,64356.0,0.3608]
[1724620395411,0.274953,64357.0,64356.0,0.3612]
[1724620397712,0.291953,64357.0,64356.0,0.3632]
[1724620400218,0.32998254,64357.0,64356.0,0.3632]
[1724620403218,0.291953,64357.0,64356.0,0.3632]
[1724620403617,0.291953,64357.0,64356.0,0.0024]
[1724620411430,0.32998531,64357.0,64356.0,0.0024]
[1724620412326,0.45402594,64357.0,64356.0,0.0024]
[1724620412518,0.32998531,64357.0,64356.0,0.0024]
[1724620415031,0.23998531,64357.0,64356.0,0.0024]
[1724620415433,0.32998531,64357.0,64356.0,0.0024]
[1724620415630,0.45402594,64357.0,64356.0,0.0024]
[1724620416729,0.45402594,64357.0,64356.0,0.3632]
[1724620417333,0.32998531,64357.0,64356.0,0.3632]
[1724620417939,0.32998531,64357.0,64356.0,0.0024]
[1724620418133,0.32998531,64357.0,64356.0,0.3632]
[1724620418339,0.291953,64357.0,64356.0,0.3632]
[1724620421624,0.291953,64357.0,64356.0,0.0024]
[1724620421830,0.291953,64357.0,64356.0,0.3632]
[1724620424541,0.236653,64357.0,64356.0,0.3632]
[1724620425138,0.184653,64357.0,64356.0,0.3632]
[1724620425340,0.22268333,64357.0,64356.0,0.3632]
[1724620433445,0.184653,64357.0,64356.0,0.3632]
[1724620439351,0.094653,64357.0,64356.0,0.3632]
[1724620439548,0.184653,64357.0,64356.0,0.3632]
[1724620440343,0.22268416,64357.0,64356.0,0.3632]
[1724620441856,0.22268416,64357.0,64356.0,0.10235721]
[1724620442367,0.25268354,64357.0,64356.0,0.10235721]
[1724620442863,0.08503054,64357.0,64356.0,0.10235721]
[1724620443059,0.13699938,64357.0,64356.0,0.10235721]
[1724620443459,0.107,64357.0,64356.0,0.10235721]
[1724620443659,0.17502508,64357.0,64356.0,0.10235721]
[1724620444169,0.24567298,64357.0,64356.0,0.10235721]
[1724620445365,0.13699689,64357.0,64356.0,0.10235721]
[1724620446271,0.24567298,64357.0,64356.0,0.10235721]
[1724620446480,0.13699689,64357.0,64356.0,0.10235721]
[1724620448275,0.24567298,64357.0,64356.0,0.10235721]
[1724620448472,0.107,64357.0,64356.0,0.10235721]
[1724620454769,0.017,64357.0,64356.0,0.11235721]
[1724620463385,0.04699653,64357.0,64356.0,0.11235721]
[1724620463787,0.14113903,64357.0,64356.0,0.11235721]
[1724620464183,0.17113556,64357.0,64356.0,0.11235721]
[1724620464591,0.04699653,64357.0,64356.0,0.11235721]
[1724620464887,0.14114508,64357.0,64356.0,0.11235721]
[1724620465093,0.17114161,64357.0,64356.0,0.11235721]
[1724620465691,0.08502427,64357.0,64356.0,0.11235721]
[1724620465989,0.04699653,64357.0,64356.0,0.11235721]
[1724620468181,0.17114161,64357.0,64356.0,0.83395721]
[1724620469489,0.17114161,64357.0,64356.0,0.11235721]
[1724620469690,0.17114161,64357.0,64356.0,0.83395721]
[1724620470291,0.08502427,64357.0,64356.0,0.83395721]
[1724620470487,0.017,64357.0,64356.0,0.83395721]
[1724620479299,0.017,64357.0,64356.0,0.8956449]
[1724620479802,0.017,64357.0,64356.0,0.83395721]
[1724620480304,0.017,64357.0,64356.0,0.8956449]
[1724620483396,0.017,64357.0,64356.0,0.83395721]
[1724620484002,0.017,64357.0,64356.0,0.89568739]
[1724620485502,0.04699479,64357.0,64356.0,0.83395721]
[1724620488395,0.04699465,64357.0,64356.0,0.83395721]
[1724620489607,0.11018281,64357.0,64356.0,0.83395721]
[1724620490610,0.11018281,64357.0,64356.0,0.85823747]
[1724620493312,0.017,64357.0,64356.0,0.83395721]
[1724620493503,0.017,64357.0,64356.0,0.85823746]
[1724620495806,0.017,64357.0,64356.0,0.93534707]
[1724620496701,0.017,64357.0,64356.0,0.18946682]
[1724620497007,0.017,64357.0,64356.0,0.85823734]
[1724620498218,0.017,64357.0,64356.0,0.87766141]
[1724620499403,0.017,64357.0,64356.0,0.91106682]
[1724620499609,0.017,64357.0,64356.0,1.02939837]
[1724620500506,0.017,64357.0,64356.0,0.11235721]
[1724620500706,0.017,64357.0,64356.0,0.47315721]
[1724620500908,0.017,64357.0,64356.0,0.83395721]
[1724620503614,0.017,64357.0,64356.0,0.11235721]
[1724620503913,0.017,64357.0,64356.0,0.83395721]
[1724620505715,0.017,64357.0,64356.0,0.85823732]
[1724620506623,0.017,64357.0,64356.0,0.84823732]
[1724620506823,0.29330222,64357.0,64356.0,0.46315721]
[1724620507019,0.32340989,64357.0,64356.0,0.46315721]
[1724620507216,0.25267506,64357.0,64356.0,0.46315721]